fUST/lending_fUST_20250311
["ID","MTS","AMOUNT","RATE_DAILY","PERIOD"]
[355900009,1741695070298,-829.17,0.00035068,7]
[355900010,1741695070310,-733.52,0.00035068,7]
[355900011,1741695070320,-962.34,0.00035068,7]
[355900012,1741695070329,-639.39,0.00035068,7]
[355900013,1741695070339,-500.0,0.00035068,7]
[355900014,1741695070349,-1089.45,0.00035068,7]
[355900015,1741695070358,-5880.08,0.00035068,7]
[355900016,1741695070367,-3049.91,0.00035068,7]
[355900017,1741695070377,-811.41,0.00035068,7]
[355900018,1741695070386,-784.07,0.00035068,7]
[355900019,1741695070395,-500.0,0.00035068,7]
[355900020,1741695070404,-500.0,0.00035068,7]
[355900021,1741695070413,-500.0,0.00035068,7]
[355900022,1741695070423,-2787.16,0.00035068,7]
[355900023,1741695070433,-500.0,0.00035068,7]
[355900024,1741695070442,-555.22,0.00035068,7]
[355900025,1741695070451,-500.0,0.00035068,7]
[355900026,1741695070461,-1232.85,0.00035068,7]
[355900027,1741695070471,-12621.59,0.00035068,2]
[355900028,1741695070480,-500.0,0.00035068,7]
[355900029,1741695070490,-750.56,0.00035068,7]
[355900030,1741695070500,-500.0,0.00035068,7]
[355900031,1741695070510,-500.0,0.00035068,7]
[355900032,1741695070519,-2932.36,0.00035068,7]
[355900033,1741695070530,-500.0,0.00035068,7]
[355900034,1741695070540,-500.0,0.00035068,7]
[355900035,1741695070550,-500.0,0.00035068,7]
[355900036,1741695070560,-787.55,0.00035068,7]
[355900037,1741695070569,-500.13,0.00035068,2]
[355900038,1741695070579,-1927.93,0.00035068,7]
[355900039,1741695070588,-880.5,0.00035068,7]
[355900040,1741695070597,-954.03,0.00035068,7]
[355900041,1741695070607,-2054.61,0.00035068,7]
[355900042,1741695070616,-500.0,0.00035068,7]
[355900043,1741695070626,-706.85,0.000352,14]
[355900044,1741695070636,-233.36809777,0.00035316,5]
[355900045,1741695070645,-1000.0,0.00035321,5]
[355900046,1741695070655,-500.0,0.00035342,5]
[355900047,1741695070665,-500.0,0.00035342,7]
[355900048,1741695070674,-625.55,0.00035342,7]
[355900049,1741695070684,-500.0,0.00035342,7]
[355900050,1741695070693,-673.91,0.00035342,7]
[355900051,1741695070703,-511.763963,0.00035342,7]
[355900052,1741695070715,-500.0,0.00035342,7]
[355900053,1741695070726,-500.0,0.00035342,7]
[355900054,1741695070736,-500.0,0.00035342,7]
[355900055,1741695070746,-500.0,0.00035342,7]
[355900056,1741695070756,-702.78,0.00035342,7]
[355900057,1741695070767,-500.0,0.00035342,7]
[355900058,1741695070776,-500.0,0.00035342,7]
[355900059,1741695070786,-557.89,0.00035342,7]
[355900060,1741695070797,-521.71,0.00035342,7]
[355900061,1741695070808,-500.0,0.00035342,7]
[355900062,1741695070817,-500.0,0.00035342,7]
[355900063,1741695070827,-908.05,0.00035342,7]
[355900064,1741695070836,-500.0,0.00035342,7]
[355900065,1741695070846,-865.89,0.00035342,7]
[355900066,1741695070856,-500.0,0.00035342,7]
[355900067,1741695070866,-500.0,0.00035342,7]
[355900068,1741695070876,-754.14,0.00035342,7]
[355900069,1741695070886,-1673.35,0.00035342,7]
[355900070,1741695070896,-500.0,0.00035342,7]
[355900071,1741695070906,-677.07,0.00035342,7]
[355900072,1741695070916,-500.0,0.00035342,7]
[355900073,1741695070926,-1023.55,0.00035342,7]
[355900074,1741695070935,-549.19791232,0.00035342,7]
[355900075,1741695070944,-1082.92,0.00035342,7]
[355900076,1741695070954,-873.54,0.00035342,7]
[355900077,1741695070963,-500.0,0.00035342,7]
[355900078,1741695070973,-519.6,0.00035342,7]
[355900079,1741695070984,-500.0,0.00035342,7]
[355900080,1741695070994,-500.0,0.00035342,7]
[355900081,1741695071003,-500.0,0.00035342,2]
[355900082,1741695071013,-500.0,0.00035342,7]
[355900083,1741695071023,-500.0,0.00035342,2]
[355900084,1741695071033,-1095.93,0.00035342,7]
[355900085,1741695071044,-695.17,0.00035342,7]
[355900086,1741695071055,-614.38,0.00035342,7]
[355900087,1741695071064,-500.0,0.00035342,7]
[355900088,1741695071074,-551.27,0.00035342,7]
[355900089,1741695071084,-1330.09,0.00035342,7]
[355900090,1741695071094,-500.0,0.00035342,7]
[355900091,1741695071103,-931.03,0.00035342,7]
[355900092,1741695071113,-500.0,0.00035342,7]
[355900093,1741695071124,-500.0,0.00035342,7]
[355900094,1741695071134,-591.82,0.00035342,7]
[355900095,1741695071143,-500.0,0.00035342,7]
[355900096,1741695071154,-500.0,0.00035342,7]
[355900097,1741695071164,-500.0,0.00035342,7]
[355900098,1741695071173,-933.31,0.00035342,7]
[355900099,1741695071183,-500.0,0.00035342,7]
[355900100,1741695071195,-617.03,0.00035342,7]
[355900101,1741695071205,-1018.72,0.00035342,7]
[355900102,1741695071215,-795.07,0.00035342,7]
[355900103,1741695071225,-500.0,0.00035342,7]
[355900104,1741695071236,-908.92,0.00035342,7]
[355900105,1741695071246,-1737.97,0.00035342,7]
[355900106,1741695071256,-826.41,0.00035342,7]
[355900107,1741695071266,-804.08,0.00035342,7]
[355900108,1741695071278,-1673.2,0.00035342,7]
[355900109,1741695071288,-500.0,0.00035342,7]
[355900110,1741695071299,-779.12,0.00035342,7]
[355900111,1741695071308,-796.75,0.00035342,7]
[355900112,1741695071319,-500.0,0.00035342,7]
[355900113,1741695071329,-1274.5,0.00035342,7]
[355900114,1741695071339,-634.07642831,0.00035342,7]
[355900115,1741695071349,-851.15,0.00035342,7]
[355900116,1741695071359,-500.0,0.00035342,7]
[355900117,1741695071368,-500.0,0.00035342,7]
[355900118,1741695071378,-1003.93,0.00035342,7]
[355900119,1741695071388,-765.82,0.00035342,7]
[355900120,1741695071398,-637.49,0.00035342,7]
[355900121,1741695071407,-2150.15,0.00035342,7]
[355900122,1741695071416,-2766.58,0.00035342,7]
[355900123,1741695071426,-500.0,0.00035342,7]
[355900124,1741695071436,-750.37,0.00035342,7]
[355900125,1741695071446,-920.19,0.00035342,7]
[355900126,1741695071456,-724.74,0.00035342,7]
[355900127,1741695071466,-500.0,0.00035342,7]
[355900128,1741695071475,-500.0,0.00035342,7]
[355900129,1741695071486,-663.78,0.00035342,7]
[355900130,1741695071496,-500.0,0.00035342,7]
[355900131,1741695071506,-500.0,0.00035342,7]
[355900132,1741695071515,-500.0,0.00035342,7]
[355900133,1741695071526,-295.51667492,0.00035342,7]
[355900134,1741695071537,-795.7,0.00035342,7]
[355900135,1741695071552,-1184.43,0.00035342,7]
[355900136,1741695071563,-500.0,0.00035342,7]
[355900137,1741695071573,-821.86,0.00035342,7]
[355900138,1741695071583,-555.45368174,0.00035342,7]
[355900139,1741695071593,-500.0,0.00035342,7]
[355900140,1741695071603,-565.85,0.00035342,7]
[355900141,1741695071614,-500.0,0.00035342,7]
[355900142,1741695071623,-840.8,0.00035342,7]
[355900143,1741695071635,-500.0,0.00035342,7]
[355900144,1741695071645,-3149.47,0.00035342,7]
[355900145,1741695071656,-1452.45,0.00035342,7]
[355900146,1741695071666,-500.0,0.00035342,7]
[355900147,1741695071676,-626.6,0.00035342,7]
[355900148,1741695071686,-3187.87,0.00035342,7]
[355900149,1741695071696,-500.0,0.00035342,7]
[355900150,1741695071706,-540.88,0.00035342,7]
[355900151,1741695071716,-767.86,0.00035342,7]
[355900152,1741695071726,-942.67,0.00035342,7]
[355900153,1741695071736,-636.21,0.00035342,7]
[355900154,1741695071746,-444.70738774,0.00035342,7]
[355900155,1741695071756,-1064.79,0.00035342,7]
[355900156,1741695071766,-677.39,0.00035342,7]
[355900157,1741695071776,-500.0,0.00035342,7]
[355900158,1741695071786,-1153.94,0.00035342,7]
[355900159,1741695071798,-500.0,0.00035342,7]
[355900160,1741695071808,-18956.44,0.00035342,7]
[355900161,1741695071817,-201.15211504,0.00035342,7]
[355900162,1741695071826,-500.0,0.00035342,7]
[355900163,1741695071836,-649.68,0.00035342,7]
[355900164,1741695071847,-706.44,0.00035342,3]
[355900165,1741695071856,-686.45,0.00035342,7]
[355900166,1741695071866,-803.3,0.00035342,7]
[355900167,1741695071875,-756.98,0.00035342,7]
[355900168,1741695071885,-500.0,0.00035342,7]
[355900169,1741695071896,-882.99,0.00035342,7]
[355900170,1741695071906,-564.47,0.00035342,7]
[355900171,1741695071916,-5057.55,0.00035342,7]
[355900172,1741695071926,-1673.37,0.00035342,7]
[355900173,1741695071936,-815.09,0.00035342,7]
[355900174,1741695071945,-500.0,0.00035342,7]
[355900175,1741695071955,-1408.71,0.00035342,7]
[355900176,1741695072075,-664.03,0.00035342,7]
[355900177,1741695072086,-1305.95,0.00035342,7]
[355900178,1741695072096,-500.0,0.00035342,7]
[355900179,1741695072106,-6781.22,0.00035342,7]
[355900180,1741695072115,-926.55,0.00035342,7]
[355900181,1741695072124,-1332.7,0.00035342,7]
[355900182,1741695072133,-1286.83,0.00035342,7]
[355900183,1741695072143,-500.0,0.00035342,7]
[355900184,1741695072152,-500.0,0.00035342,7]
[355900185,1741695072162,-736.82,0.00035342,7]
[355900186,1741695072171,-1393.62,0.00035342,7]
[355900187,1741695072180,-977.22,0.00035342,7]
[355900188,1741695072190,-1381.89,0.00035342,7]
[355900189,1741695072200,-1041.53,0.00035342,7]
[355900190,1741695072213,-169173.3,0.00035342,7]
[355900191,1741695072222,-1239.43,0.00035342,7]
[355900192,1741695072232,-500.0,0.00035342,7]
[355900193,1741695072242,-500.0,0.00035342,7]
[355900194,1741695072252,-500.0,0.00035342,7]
[355900195,1741695072261,-1257.39,0.00035342,7]
[355900196,1741695072271,-500.0,0.00035342,7]
[355900197,1741695072280,-3412.74,0.00035342,7]
[355900198,1741695072290,-764.76,0.00035342,7]
[355900199,1741695072300,-1042.92,0.00035342,7]
[355900200,1741695072310,-516.26,0.00035342,7]
[355900201,1741695072319,-1047.73,0.00035342,7]
[355900202,1741695072328,-500.0,0.00035342,7]
[355900203,1741695072337,-1059.9,0.00035342,7]
[355900204,1741695072346,-622.95,0.00035342,7]
[355900205,1741695072355,-500.0,0.00035342,7]
[355900206,1741695072365,-3013.85,0.00035342,7]
[355900207,1741695072375,-500.0,0.00035342,7]
[355900208,1741695072385,-500.0,0.00035342,7]
[355900209,1741695072395,-667.39,0.00035342,7]
[355900210,1741695072404,-509.65,0.00035342,7]
[355900211,1741695072413,-670.74,0.00035342,7]
[355900212,1741695072423,-1582.72,0.00035342,7]
[355900213,1741695072433,-5626.47,0.00035342,7]
[355900214,1741695072442,-500.0,0.00035342,7]
[355900215,1741695072451,-603.07,0.00035342,7]
[355900216,1741695072461,-564.17,0.00035342,7]
[355900217,1741695072471,-843.1,0.00035342,7]
[355900218,1741695072480,-581.91,0.00035342,7]
[355900219,1741695072490,-3153.02,0.00035342,7]
[355900220,1741695072499,-500.0,0.00035342,7]
[355900221,1741695072509,-500.0,0.00035342,7]
[355900222,1741695072518,-6141.32,0.00035342,7]
[355900223,1741695072528,-500.0,0.00035342,7]
[355900224,1741695072538,-4009.94,0.00035342,7]
[355900225,1741695072549,-3615.33,0.00035342,7]
[355900226,1741695072559,-769.89,0.00035342,7]
[355900227,1741695072568,-1319.72,0.00035342,7]
[355900228,1741695072577,-500.0,0.00035342,7]
[355900229,1741695072587,-1549.54,0.00035342,7]
[355900230,1741695072596,-1201.25,0.00035342,7]
[355900231,1741695072606,-540.93,0.00035342,7]
[355900232,1741695072615,-1267.56,0.00035342,7]
[355900233,1741695072625,-1271.42,0.00035342,7]
[355900234,1741695072634,-736.19,0.00035342,7]
[355900235,1741695072644,-500.0,0.00035342,7]
[355900236,1741695072654,-500.0,0.00035342,7]
[355900237,1741695072664,-7024.08,0.00035342,7]
[355900238,1741695072673,-993.56,0.00035342,7]
[355900239,1741695072684,-732.5,0.00035342,7]
[355900240,1741695072693,-541.7,0.00035342,7]
[355900241,1741695072704,-980.96,0.00035342,7]
[355900242,1741695072714,-1275.08,0.00035342,7]
[355900243,1741695072725,-770.93,0.00035342,7]
[355900244,1741695072735,-986.09,0.00035342,7]
[355900245,1741695072745,-988.89,0.00035342,7]
[355900246,1741695072755,-1935.18,0.00035342,7]
[355900247,1741695072764,-1374.06,0.00035342,7]
[355900248,1741695072774,-500.0,0.00035342,7]
[355900249,1741695072784,-500.0,0.00035342,7]
[355900250,1741695072795,-745.04,0.00035342,7]
[355900251,1741695072805,-5601.81,0.00035342,7]
[355900252,1741695072814,-1155.41,0.00035342,7]
[355900253,1741695072824,-500.0,0.00035342,7]
[355900254,1741695072834,-829.17,0.00035342,7]
[355900255,1741695072844,-733.52,0.00035342,7]
[355900256,1741695072854,-962.34,0.00035342,7]
[355900257,1741695072864,-639.39,0.00035342,7]
[355900258,1741695072874,-500.0,0.00035342,7]
[355900259,1741695072884,-1089.45,0.00035342,7]
[355900260,1741695072893,-5880.08,0.00035342,7]
[355900261,1741695072903,-3049.91,0.00035342,7]
[355900262,1741695072913,-811.41,0.00035342,7]
[355900263,1741695072922,-784.07,0.00035342,7]
[355900264,1741695072932,-500.0,0.00035342,7]
[355900265,1741695072941,-500.0,0.00035342,7]
[355900266,1741695072951,-500.0,0.00035342,7]
[355900267,1741695072960,-2787.16,0.00035342,7]
[355900268,1741695072970,-500.0,0.00035342,7]
[355900269,1741695072979,-555.22,0.00035342,7]
[355900270,1741695072988,-500.0,0.00035342,7]
[355900271,1741695072997,-1232.85,0.00035342,7]
[355900272,1741695073007,-12621.59,0.00035342,2]
[355900273,1741695073017,-500.0,0.00035342,7]
[355900274,1741695073026,-750.56,0.00035342,7]
[355900275,1741695073036,-500.0,0.00035342,7]
[355900276,1741695073047,-500.0,0.00035342,7]
[355900277,1741695073056,-2932.36,0.00035342,7]
[355900278,1741695073066,-500.0,0.00035342,7]
[355900279,1741695073075,-500.0,0.00035342,7]
[355900280,1741695073085,-500.0,0.00035342,7]
[355900281,1741695073095,-787.55,0.00035342,7]
[355900282,1741695073104,-500.13,0.00035342,2]
[355900283,1741695073113,-1927.93,0.00035342,7]
[355900284,1741695073122,-880.5,0.00035342,7]
[355900285,1741695073131,-954.03,0.00035342,7]
[355900286,1741695073142,-2054.61,0.00035342,7]
[355900287,1741695073151,-645.00205666,0.00035342,7]
[355900288,1741695073160,-9748.73,0.000354,30]
[355900289,1741695073169,-2664.23,0.000354,30]
[355900290,1741695073179,-266.88,0.000354,30]
[355900291,1741695073188,-817.53,0.000354,30]
[355900292,1741695073201,-242.20496183,0.00035427,2]
[355900293,1741695073214,-160.0,0.00035565,2]
[355900294,1741695073224,-240.1,0.000356,30]
[355900295,1741695073234,-209.23,0.00035605,2]
[355900296,1741695073246,-680.0,0.00035613,2]
[355900297,1741695073256,-361.34961419,0.00035616,5]
[355900298,1741695073268,-500.0,0.00035616,7]
[355900299,1741695073278,-625.55,0.00035616,7]
[355900300,1741695073288,-500.0,0.00035616,7]
[355900301,1741695073302,-673.91,0.00035616,7]
[355900302,1741695073311,-500.0,0.00035616,7]
[355900303,1741695073321,-500.0,0.00035616,7]
[355900304,1741695073332,-500.0,0.00035616,7]
[355900305,1741695073341,-500.0,0.00035616,7]
[355900306,1741695073351,-702.78,0.00035616,7]
[355900307,1741695073360,-500.0,0.00035616,7]
[355900308,1741695073370,-500.0,0.00035616,7]
[355900309,1741695073380,-557.89,0.00035616,7]
[355900310,1741695073390,-521.71,0.00035616,7]
[355900311,1741695073399,-500.0,0.00035616,7]
[355900312,1741695073409,-500.0,0.00035616,7]
[355900313,1741695073418,-908.05,0.00035616,7]
[355900314,1741695073428,-500.0,0.00035616,7]
[355900315,1741695073437,-865.89,0.00035616,7]
[355900316,1741695073446,-513.26034765,0.00035616,7]
[355900317,1741695073456,-500.0,0.00035616,7]
[355900318,1741695073465,-754.14,0.00035616,7]
[355900319,1741695073475,-1673.35,0.00035616,7]
[355900320,1741695073484,-500.0,0.00035616,7]
[355900321,1741695073494,-677.07,0.00035616,7]
[355900322,1741695073503,-500.0,0.00035616,7]
[355900323,1741695073513,-1023.55,0.00035616,7]
[355900324,1741695073523,-1082.92,0.00035616,7]
[355900325,1741695073534,-873.54,0.00035616,7]
[355900326,1741695073546,-500.0,0.00035616,7]
[355900327,1741695073555,-519.6,0.00035616,7]
[355900328,1741695073570,-500.0,0.00035616,7]
[355900329,1741695073638,-500.0,0.00035616,7]
[355900330,1741695073784,-500.0,0.00035616,2]
[355900331,1741695073879,-500.0,0.00035616,7]
[355900332,1741695074012,-500.0,0.00035616,2]
[355900333,1741695074102,-1095.93,0.00035616,7]
[355900334,1741695074323,-695.17,0.00035616,7]
[355900335,1741695074448,-614.38,0.00035616,7]
[355900336,1741695074526,-500.0,0.00035616,7]
[355900337,1741695074646,-551.27,0.00035616,7]
[355900338,1741695074770,-1330.09,0.00035616,7]
[355900339,1741695074871,-500.0,0.00035616,7]
[355900340,1741695074913,-931.03,0.00035616,7]
[355900341,1741695074926,-500.0,0.00035616,7]
[355900342,1741695074937,-500.0,0.00035616,7]
[355900343,1741695074948,-591.82,0.00035616,7]
[355900344,1741695074958,-500.0,0.00035616,7]
[355900345,1741695074969,-500.0,0.00035616,7]
[355900346,1741695074979,-500.0,0.00035616,7]
[355900347,1741695074990,-933.31,0.00035616,7]
[355900348,1741695074999,-169.75657938,0.00035616,7]
[355900349,1741695075010,-617.03,0.00035616,7]
[355900350,1741695075020,-1018.72,0.00035616,7]
[355900351,1741695075030,-795.07,0.00035616,7]
[355900352,1741695075040,-500.0,0.00035616,7]
[355900353,1741695075052,-908.92,0.00035616,7]
[355900354,1741695075063,-1737.97,0.00035616,7]
[355900355,1741695075072,-826.41,0.00035616,7]
[355900356,1741695075082,-804.08,0.00035616,7]
[355900357,1741695075092,-1673.2,0.00035616,7]
[355900358,1741695075102,-500.0,0.00035616,7]
[355900359,1741695075112,-779.12,0.00035616,7]
[355900360,1741695075122,-796.75,0.00035616,7]
[355900361,1741695075132,-500.0,0.00035616,7]
[355900362,1741695075142,-1274.5,0.00035616,7]
[355900363,1741695075152,-3425.53,0.00035616,2]
[355900364,1741695075162,-3425.53,0.00035616,2]
[355900365,1741695075172,-3425.53,0.00035616,2]
[355900366,1741695075182,-3425.53,0.00035616,2]
[355900367,1741695075192,-3425.53,0.00035616,2]
[355900368,1741695075201,-3425.53,0.00035616,2]
[355900369,1741695075217,-3425.53,0.00035616,2]
[355900370,1741695075233,-3425.53,0.00035616,2]
[355900371,1741695075243,-3425.53,0.00035616,2]
[355900372,1741695075255,-3425.53,0.00035616,2]
[355900373,1741695075265,-3425.53,0.00035616,2]
[355900374,1741695075276,-3425.53,0.00035616,2]
[355900375,1741695075288,-3425.53,0.00035616,2]
[355900376,1741695075302,-3425.53,0.00035616,2]
[355900377,1741695075313,-3425.53,0.00035616,2]
[355900378,1741695075323,-3425.53,0.00035616,2]
[355900379,1741695075335,-851.15,0.00035616,7]
[355900380,1741695075345,-500.0,0.00035616,7]
[355900381,1741695075355,-3425.53,0.00035616,2]
[355900382,1741695075365,-3425.53,0.00035616,2]
[355900383,1741695075375,-3425.53,0.00035616,2]
[355900384,1741695075385,-3425.53,0.00035616,2]
[355900385,1741695075395,-3425.53,0.00035616,2]
[355900386,1741695075405,-3425.53,0.00035616,2]
[355900387,1741695075415,-3425.53,0.00035616,2]
[355900388,1741695075424,-3425.75038807,0.00035616,2]
[355900389,1741695075434,-500.0,0.00035616,7]
[355900390,1741695075444,-1003.93,0.00035616,7]
[355900391,1741695075454,-765.82,0.00035616,7]
[355900392,1741695075465,-637.49,0.00035616,7]
[355900393,1741695075475,-2150.15,0.00035616,7]
[355900394,1741695075485,-2766.58,0.00035616,7]
[355900395,1741695075495,-500.0,0.00035616,7]
[355900396,1741695075504,-750.37,0.00035616,7]
[355900397,1741695075514,-920.19,0.00035616,7]
[355900398,1741695075523,-724.74,0.00035616,7]
[355900399,1741695075534,-500.0,0.00035616,7]
[355900400,1741695075546,-500.0,0.00035616,7]
[355900401,1741695075556,-663.78,0.00035616,7]
[355900402,1741695075566,-500.0,0.00035616,7]
[355900403,1741695075577,-500.0,0.00035616,7]
[355900404,1741695075587,-500.0,0.00035616,7]
[355900405,1741695075597,-795.7,0.00035616,7]
[355900406,1741695075607,-1184.43,0.00035616,7]
[355900407,1741695075617,-500.0,0.00035616,7]
[355900408,1741695075627,-821.86,0.00035616,7]
[355900409,1741695075637,-500.0,0.00035616,7]
[355900410,1741695075647,-565.85,0.00035616,7]
[355900411,1741695075657,-228.5563047,0.00035616,7]
[355900412,1741695075666,-840.8,0.00035616,7]
[355900413,1741695075676,-500.0,0.00035616,7]
[355900414,1741695075686,-3149.47,0.00035616,7]
[355900415,1741695075696,-1452.45,0.00035616,7]
[355900416,1741695075707,-500.0,0.00035616,7]
[355900417,1741695075717,-626.6,0.00035616,7]
[355900418,1741695075727,-3187.87,0.00035616,7]
[355900419,1741695075737,-500.0,0.00035616,7]
[355900420,1741695075747,-540.88,0.00035616,7]
[355900421,1741695075757,-767.86,0.00035616,7]
[355900422,1741695075767,-942.67,0.00035616,7]
[355900423,1741695075778,-636.21,0.00035616,7]
[355900424,1741695075788,-1064.79,0.00035616,7]
[355900425,1741695075799,-677.39,0.00035616,7]
[355900426,1741695075809,-500.0,0.00035616,7]
[355900427,1741695075820,-1153.94,0.00035616,7]
[355900428,1741695075829,-500.0,0.00035616,7]
[355900429,1741695075839,-18956.44,0.00035616,7]
[355900430,1741695075849,-609.35028536,0.00035616,7]
[355900431,1741695075858,-649.68,0.00035616,7]
[355900432,1741695075868,-686.45,0.00035616,7]
[355900433,1741695075879,-706.44,0.00035616,3]
[355900434,1741695075889,-803.3,0.00035616,7]
[355900435,1741695075899,-756.98,0.00035616,7]
[355900436,1741695075908,-500.0,0.00035616,7]
[355900437,1741695075918,-882.99,0.00035616,7]
[355900438,1741695075928,-564.47,0.00035616,7]
[355900439,1741695075938,-5057.55,0.00035616,7]
[355900440,1741695075948,-1673.37,0.00035616,7]
[355900441,1741695075959,-815.09,0.00035616,7]
[355900442,1741695075969,-500.0,0.00035616,7]
[355900443,1741695075981,-1408.71,0.00035616,7]
[355900444,1741695075991,-664.03,0.00035616,7]
[355900445,1741695076003,-1305.95,0.00035616,7]
[355900446,1741695076014,-500.0,0.00035616,7]
[355900447,1741695076024,-6781.22,0.00035616,7]
[355900448,1741695076034,-926.55,0.00035616,7]
[355900449,1741695076046,-1332.7,0.00035616,7]
[355900450,1741695076055,-1286.83,0.00035616,7]
[355900451,1741695076066,-500.0,0.00035616,7]
[355900452,1741695076075,-500.0,0.00035616,7]
[355900453,1741695076084,-736.82,0.00035616,7]
[355900454,1741695076094,-1393.62,0.00035616,7]
[355900455,1741695076104,-977.22,0.00035616,7]
[355900456,1741695076114,-1381.89,0.00035616,7]
[355900457,1741695076125,-1041.53,0.00035616,7]
[355900458,1741695076136,-169173.3,0.00035616,7]
[355900459,1741695076146,-1239.43,0.00035616,7]
[355900460,1741695076157,-500.0,0.00035616,7]
[355900461,1741695076168,-500.0,0.00035616,7]
[355900462,1741695076179,-500.0,0.00035616,7]
[355900463,1741695076192,-1257.39,0.00035616,7]
[355900464,1741695076207,-500.0,0.00035616,7]
[355900465,1741695076219,-3412.74,0.00035616,7]
[355900466,1741695076231,-764.76,0.00035616,7]
[355900467,1741695076243,-1042.92,0.00035616,7]
[355900468,1741695076254,-516.26,0.00035616,7]
[355900469,1741695076264,-1047.73,0.00035616,7]
[355900470,1741695076277,-500.0,0.00035616,7]
[355900471,1741695076291,-1059.9,0.00035616,7]
[355900472,1741695076311,-622.95,0.00035616,7]
[355900473,1741695076324,-500.0,0.00035616,7]
[355900474,1741695076336,-3013.85,0.00035616,7]
[355900475,1741695076352,-500.0,0.00035616,7]
[355900476,1741695076364,-500.0,0.00035616,7]
[355900477,1741695076375,-667.39,0.00035616,7]
[355900478,1741695076387,-509.65,0.00035616,7]
[355900479,1741695076607,-670.74,0.00035616,7]
[355900480,1741695076739,-1582.72,0.00035616,7]
[355900481,1741695076752,-5626.47,0.00035616,7]
[355900482,1741695076763,-500.0,0.00035616,7]
[355900483,1741695076773,-603.07,0.00035616,7]
[355900484,1741695076784,-564.17,0.00035616,7]
[355900485,1741695076795,-843.1,0.00035616,7]
[355900486,1741695076810,-581.91,0.00035616,7]
[355900487,1741695076821,-3153.02,0.00035616,7]
[355900488,1741695076831,-500.0,0.00035616,7]
[355900489,1741695076842,-500.0,0.00035616,7]
[355900490,1741695076852,-6141.32,0.00035616,7]
[355900491,1741695076862,-500.0,0.00035616,7]
[355900492,1741695076872,-4009.94,0.00035616,7]
[355900493,1741695076882,-3615.33,0.00035616,7]
[355900494,1741695076893,-769.89,0.00035616,7]
[355900495,1741695076903,-1319.72,0.00035616,7]
[355900496,1741695076913,-500.0,0.00035616,7]
[355900497,1741695076923,-1549.54,0.00035616,7]
[355900498,1741695076934,-1201.25,0.00035616,7]
[355900499,1741695076944,-540.93,0.00035616,7]
[355900500,1741695076954,-1267.56,0.00035616,7]
[355900501,1741695076964,-1271.42,0.00035616,7]
[355900502,1741695076974,-736.19,0.00035616,7]
[355900503,1741695076984,-500.0,0.00035616,7]
[355900504,1741695076995,-500.0,0.00035616,7]
[355900505,1741695077005,-7024.08,0.00035616,7]
[355900506,1741695077015,-993.56,0.00035616,7]
[355900507,1741695077026,-732.5,0.00035616,7]
[355900508,1741695077035,-541.7,0.00035616,7]